bitfinex-derivatives/quotes_SOLF0:USTF0_20260116
["timestamp","ask_amount","ask_price","bid_price","bid_amount"]
[1768599004186,12.38818573,145.37,145.29,13.35474502]
[1768599005990,6.1952,145.34,145.29,13.35474502]
[1768599007990,6.1944,145.36,145.29,13.35474502]
[1768599009888,12.38818573,145.35,145.26,13.35474502]
[1768599010681,12.38818573,145.34,145.26,13.35474502]
[1768599011989,6.195,145.35,145.28,13.35474502]
[1768599012590,18.58318573,145.35,145.28,13.35474502]
[1768599014680,12.38818573,145.33,145.26,13.35474502]
[1768599015885,6.1961,145.32,145.26,13.35474502]
[1768599017892,6.1961,145.32,145.26,21.84370087]
[1768599018488,6.1961,145.32,145.26,13.35474502]
[1768599019195,6.1961,145.32,145.26,21.84370087]
[1768599020800,6.1961,145.32,145.27,13.35474502]
[1768599021201,6.1961,145.32,145.27,21.84370087]
[1768599022503,12.38818573,145.35,145.27,21.84370087]
[1768599022800,20.68,145.41,145.33,13.21755487]
[1768599022801,14.26456126,145.41,145.33,13.21755487]
[1768599023003,14.26456126,145.41,145.35,8.48895585]
[1768599023396,20.45706126,145.41,145.36,8.48895585]
[1768599023592,20.45706126,145.41,145.35,8.48895585]
[1768599024996,15.77628153,145.45,145.41,13.21755487]
[1768599025195,14.26456126,145.5,145.42,18.56659949]
[1768599025401,6.1885,145.5,145.43,10.07764364]
[1768599025600,14.26456126,145.52,145.43,10.07764364]
[1768599025904,110.52576126,145.51,145.43,10.07764364]
[1768599026093,14.26456126,145.49,145.41,8.48895585]
[1768599026705,14.26456126,145.49,145.4,18.60589929]
[1768599026903,14.26456126,145.49,145.41,8.48895585]
[1768599027208,14.26456126,145.49,145.41,10.15579184]
[1768599027810,6.1893,145.48,145.41,10.15579184]
[1768599028216,14.26456126,145.49,145.41,10.15579184]
[1768599028402,6.1894,145.48,145.41,10.15579184]
[1768599029099,14.26456126,145.49,145.41,10.15579184]
[1768599029311,6.1899,145.47,145.41,10.15579184]
[1768599034821,6.1901,145.46,145.39,270.6146841]
[1768599035825,6.1901,145.46,145.4,10.48438774]
[1768599036621,96.2942,145.46,145.39,260.16]
[1768599036819,14.33896239,145.44,145.34,10.5137502]
[1768599037226,6.1919,145.42,145.34,10.5137502]
[1768599039326,14.33896239,145.44,145.34,10.5137502]
[1768599039831,14.33896239,145.43,145.34,10.5137502]
[1768599040832,6.1923,145.41,145.34,10.5137502]
[1768599043434,6.1916,145.43,145.34,10.5137502]
[1768599044330,14.33896239,145.44,145.35,10.71005809]
[1768599045831,6.1922,145.41,145.35,10.71005809]
[1768599046636,6.1922,145.41,145.18,316.56]
[1768599046637,14.33896239,145.39,145.29,19.27840627]
[1768599047136,14.33896239,145.39,145.29,10.78945042]
[1768599047932,6.1945,145.36,145.29,10.78945042]
[1768599049936,20.53266239,145.38,145.29,25.47550627]
[1768599050136,14.33896239,145.38,145.29,25.47550627]
[1768599051842,6.1939,145.37,145.29,25.47550627]
[1768599053642,6.1939,145.37,145.3,10.98928359]
[1768599053839,6.1943,145.36,145.3,10.98928359]
[1768599054038,14.33896239,145.38,145.3,10.98928359]
[1768599055136,14.04750921,145.39,145.3,10.98928359]
[1768599055936,6.1939,145.37,145.3,10.98928359]
[1768599060342,14.04750921,145.35,145.27,25.81349904]
[1768599060844,14.04750921,145.35,145.27,19.61569904]
[1768599061435,14.04750921,145.35,145.28,6.1977]
[1768599062136,14.01250921,145.35,145.28,6.1977]
[1768599062632,14.01250921,145.35,145.29,6.1972]
[1768599064440,14.04750921,145.32,145.27,8.48895585]
[1768599064644,14.04750921,145.32,145.22,96.4438]
[1768599064645,14.04750921,145.32,145.22,8.48895585]
[1768599065036,14.04750921,145.32,145.24,6.1993]
[1768599065240,14.04750921,145.37,145.24,11.26923437]
[1768599065544,14.04750921,145.37,145.26,11.28999753]
[1768599066140,14.04750921,145.35,145.26,11.28999753]
[1768599066548,14.04750921,145.41,145.31,11.3105222]
[1768599066741,14.04750921,145.41,145.34,17.5056222]
[1768599067045,14.04750921,145.41,145.34,277.6256222]
[1768599067243,96.2822,145.48,145.35,11.3105222]
[1768599067445,438.0,145.88,145.38,11.33073443]
[1768599067446,14.04750921,145.5,145.38,11.33073443]
[1768599067642,14.04750921,145.47,145.37,8.48895585]
[1768599067848,14.04750921,145.47,145.36,19.81969028]
[1768599068143,14.04750921,145.47,145.36,11.33073443]
[1768599068344,6.1908,145.45,145.36,17.52483443]
[1768599068943,20.23740921,145.47,145.36,17.52483443]
[1768599069144,14.04750921,145.46,145.36,17.52483443]
[1768599070452,14.04750921,145.46,145.36,26.01379028]
[1768599070651,14.04750921,145.45,145.36,17.52483443]
[1768599071750,14.04750921,145.45,145.36,26.01379028]
[1768599072048,14.04750921,145.45,145.37,11.40928829]
[1768599073848,14.04750921,145.45,145.38,6.1933]
[1768599074049,14.04750921,145.45,145.38,17.64052477]
[1768599075543,20.23680921,145.48,145.39,11.48429478]
[1768599076350,20.23680921,145.48,145.39,17.67699478]
[1768599076546,20.23680921,145.48,145.4,11.50251106]
[1768599077752,20.23680921,145.48,145.4,19.99146691]
[1768599078153,14.04750921,145.48,145.41,8.48895585]
[1768599079049,14.04750921,145.48,145.41,268.50895585]
[1768599080852,14.04750921,145.48,145.41,260.02]
[1768599082346,14.04750921,145.48,145.41,268.50895585]
[1768599082550,14.04750921,145.48,145.41,280.11419612]
[1768599083152,14.16174788,145.52,145.42,11.60524027]
[1768599083355,14.16174788,145.49,145.42,11.60524027]
[1768599084061,14.16174788,145.51,145.43,11.62183806]
[1768599084554,14.16174788,145.51,145.43,17.81303806]
[1768599084758,14.16174788,145.51,145.44,11.63824521]
[1768599084959,14.16174788,145.53,145.44,11.63824521]
[1768599085758,6.1879,145.51,145.44,11.63824521]
[1768599085960,14.16174788,145.53,145.44,11.63824521]
[1768599086960,20.34934788,145.52,145.44,11.63824521]
[1768599089564,14.51582107,145.51,145.44,11.63824521]
[1768599091559,20.70422107,145.5,145.44,11.63824521]
[1768599091967,20.70422107,145.5,145.42,11.75466161]
[1768599093162,14.51582107,145.48,145.4,20.25840043]
[1768599093359,14.51582107,145.48,145.4,271.70944458]
[1768599094773,6.1896,145.47,145.4,271.70944458]
[1768599095066,14.51582107,145.48,145.4,271.70944458]
[1768599096666,14.51582107,145.48,145.4,277.90184458]
[1768599097969,14.51582107,145.48,145.41,6.1921]
[1768599100070,14.51582107,145.48,145.4,259.94]
[1768599100270,14.51582107,145.48,145.36,11.86827871]
[1768599100467,14.51582107,145.43,145.34,8.48895585]
[1768599100769,14.51582107,145.43,145.34,271.82175667]
[1768599101364,14.51582107,145.51,145.35,11.88175667]
[1768599101673,14.51582107,145.51,145.39,11.89507983]
[1768599101874,14.51582107,145.51,145.4,259.94]
[1768599102673,14.51582107,145.49,145.4,259.94]
[1768599103667,14.51582107,145.49,145.4,271.86126882]
[1768599103865,14.51582107,145.55,145.41,11.92126882]
[1768599104071,14.51582107,145.55,145.42,11.92126882]
[1768599104561,14.51582107,145.52,145.42,11.92126882]
[1768599105075,14.51582107,145.55,145.44,11.93413814]
[1768599105280,14.51582107,145.55,145.44,20.42309399]
[1768599105577,14.51582107,145.55,145.44,11.93413814]
[1768599105768,14.51582107,145.55,145.44,20.42309399]
[1768599106167,14.51582107,145.55,145.44,11.93413814]
[1768599106879,20.70292107,145.53,145.44,20.42309399]
[1768599107073,20.70292107,145.53,145.44,11.93413814]
[1768599107278,20.70292107,145.53,145.44,20.42309399]
[1768599108884,14.51582107,145.52,145.44,20.42309399]
[1768599109081,14.51582107,145.52,145.45,8.48895585]
[1768599109282,14.51582107,145.52,145.44,11.93413814]
[1768599109482,14.51582107,145.52,145.44,20.42309399]
[1768599110285,14.51582107,145.52,145.45,8.48895585]
[1768599110781,14.51582107,145.52,145.46,8.48895585]
[1768599113981,14.51582107,145.52,145.47,8.48895585]
[1768599115081,14.51582107,145.52,145.46,8.48895585]
[1768599115487,14.51582107,145.52,145.47,8.48895585]
[1768599115791,14.51582107,145.52,145.46,8.48895585]
[1768599116290,14.51582107,145.52,145.47,8.48895585]
[1768599117091,14.51582107,145.52,145.46,8.48895585]
[1768599117390,14.51582107,145.52,145.47,8.48895585]
[1768599118493,20.70342107,145.52,145.47,8.48895585]
[1768599121095,20.70342107,145.52,145.46,8.48895585]
[1768599125000,14.51582107,145.52,145.46,8.48895585]
[1768599126901,14.51582107,145.52,145.46,14.67885585]
[1768599128696,14.51582107,145.52,145.46,26.88939469]
[1768599128894,21.23636571,145.54,145.47,6.1895]
[1768599129100,6.1869,145.54,145.47,6.1895]
[1768599129296,15.04946571,145.53,145.47,6.1895]
[1768599129802,15.04946571,145.53,145.48,6.1891]
[1768599130102,15.04946571,145.53,145.47,8.48895585]
[1768599130491,15.04946571,145.53,145.47,20.70902461]
[1768599133002,15.04946571,145.53,145.48,6.1891]
[1768599134097,21.23566571,145.55,145.49,6.1886]
[1768599135798,15.04946571,145.55,145.49,6.1886]
[1768599136208,15.04946571,145.55,145.5,6.1882]
[1768599136595,15.04946571,145.55,145.51,6.1878]
[1768599136802,15.04946571,145.55,145.48,20.76394898]
[1768599137407,15.04946571,145.55,145.5,6.1883]
[1768599137700,15.04946571,145.58,145.52,8.48895585]
[1768599138895,15.04946571,145.58,145.53,6.1869]
[1768599139400,15.04946571,145.58,145.52,8.48895585]
[1768599139401,15.04946571,145.58,145.54,6.1865]
[1768599140212,15.04946571,145.58,145.52,14.67605585]
[1768599140504,15.04946571,145.58,145.52,6.1871]
[1768599143299,15.04946571,145.58,145.53,6.187]
[1768599145107,15.04946571,145.58,145.54,6.1865]
[1768599145313,15.04946571,145.58,145.51,20.78142722]
[1768599145513,14.4902466,145.62,145.52,12.35405689]
[1768599145806,14.4902466,145.62,145.53,12.35405689]
[1768599146209,14.4902466,145.62,145.53,20.84301274]
[1768599146408,14.4902466,145.62,145.53,12.35405689]
[1768599146913,14.4902466,145.61,145.55,6.1861]
[1768599149616,20.6739466,145.61,145.55,6.1861]
[1768599149915,15.04430974,145.6,145.54,6.1866]
[1768599151118,15.04430974,145.59,145.53,6.187]
[1768599151320,15.04430974,145.59,145.5,8.48895585]
[1768599152912,35.72430974,145.56,145.46,12.84047103]
[1768599153113,15.04430974,145.52,145.4,15.35028324]
[1768599153311,15.04430974,145.48,145.42,6.1916]
[1768599157814,15.04430974,145.48,145.4,21.54248324]
[1768599158223,15.04430974,145.48,145.4,15.35028324]
[1768599160114,15.04430974,145.48,145.41,15.35028324]
[1768599161822,15.04430974,145.48,145.41,21.54228324]
[1768599162023,15.04430974,145.48,145.41,15.35028324]
[1768599163726,15.04430974,145.48,145.38,15.35028324]
[1768599165923,15.04430974,145.48,145.39,15.35028324]
[1768599167239,21.23350974,145.48,145.39,15.35028324]
[1768599167530,15.04430974,145.47,145.39,15.35028324]
[1768599168834,21.23440974,145.46,145.39,15.35028324]
[1768599170935,6.1905,145.45,145.39,15.35028324]
[1768599173151,6.1909,145.44,145.39,15.35028324]
[1768599177150,15.70538105,145.45,145.37,15.27788037]
[1768599177553,15.70538105,145.44,145.35,15.27788037]
[1768599177755,6.1923,145.41,145.35,15.27788037]
[1768599178257,6.1917,145.43,145.35,15.27788037]
[1768599180260,6.1917,145.43,145.37,15.27788037]
[1768599180654,21.89618105,145.45,145.38,15.27788037]
[1768599180955,15.70538105,145.47,145.38,15.27788037]
[1768599181547,6.1905,145.45,145.39,15.27788037]
[1768599181752,15.70538105,145.47,145.39,15.27788037]
[1768599182558,6.1902,145.46,145.39,15.27788037]
[1768599182761,15.70538105,145.47,145.39,15.27788037]
[1768599183970,15.70538105,145.47,145.4,15.27788037]
[1768599184160,15.70538105,145.49,145.4,15.27788037]
[1768599184567,6.189,145.49,145.42,15.27788037]
[1768599185363,6.1892,145.48,145.42,15.27788037]
[1768599187768,6.1887,145.5,145.43,15.27788037]
[1768599191275,6.1888,145.49,145.43,15.27788037]
[1768599191469,15.70538105,145.51,145.43,15.27788037]
[1768599192667,15.70538105,145.53,145.45,15.27788037]
[1768599193264,15.70538105,145.53,145.45,23.69301029]
[1768599193465,15.70538105,145.53,145.46,15.27788037]
[1768599193878,6.1875,145.52,145.46,15.27788037]
[1768599194370,6.1875,145.52,145.47,23.69301029]
[1768599194673,6.1869,145.54,145.48,15.27788037]
[1768599194972,15.70538105,145.55,145.49,15.27788037]
[1768599195471,15.70538105,145.55,145.49,29.88161029]
[1768599195770,15.70538105,145.57,145.5,15.27788037]
[1768599195973,21.89078105,145.57,145.5,15.27788037]
[1768599197174,15.70538105,145.57,145.51,15.27788037]
[1768599197671,15.70538105,145.57,145.51,21.46568037]
[1768599197870,15.70538105,145.61,145.52,15.27788037]
[1768599198166,15.70538105,145.61,145.52,21.46518037]
[1768599198764,15.70538105,145.61,145.53,15.27788037]
[1768599199568,15.70538105,145.6,145.51,23.69301029]
[1768599199879,15.70538105,145.58,145.49,8.41512992]
[1768599200066,15.70538105,145.53,145.46,283.63301029]
[1768599200267,15.70538105,145.52,145.46,259.94]
[1768599201170,15.70538105,145.52,145.44,6.1905]
[1768599201571,15.70538105,145.52,145.44,22.72276598]
[1768599201773,21.89288105,145.52,145.44,22.72276598]
[1768599204478,21.89288105,145.52,145.44,16.53226598]
[1768599206080,6.188,145.51,145.44,16.53226598]
[1768599206282,22.01196713,145.51,145.44,16.53226598]
[1768599209880,22.01196713,145.51,145.44,24.9473959]
[1768599213788,96.2278,145.56,145.46,16.78090588]
[1768599213789,21.63774151,145.53,145.46,16.78090588]
[1768599214891,21.63774151,145.53,145.46,25.1960358]
[1768599216493,21.63774151,145.53,145.47,16.78090588]
[1768599220490,21.63774151,145.53,145.47,25.1960358]
[1768599225295,96.2178,145.57,145.46,8.41512992]
[1768599225296,15.45044151,145.52,145.46,8.41512992]
[1768599225494,15.45044151,145.52,145.45,8.41512992]
[1768599226498,6.1883,145.5,145.45,8.41512992]
[1768599226802,15.45044151,145.52,145.43,8.41512992]
[1768599227103,15.45044151,145.52,145.44,8.41512992]
[1768599227403,15.45044151,145.52,145.43,8.41512992]
[1768599227796,6.189,145.49,145.43,8.41512992]
[1768599227996,21.63944151,145.49,145.43,8.41512992]
[1768599228303,6.1896,145.47,145.43,8.41512992]
[1768599228510,6.1896,145.47,145.42,8.41512992]
[1768599230001,15.45044151,145.48,145.42,8.41512992]
[1768599230202,15.45044151,145.48,145.41,8.41512992]
[1768599230402,15.45044151,145.45,145.39,268.29512992]
[1768599230598,15.45044151,145.45,145.39,259.88]
[1768599233510,15.45044151,145.45,145.39,266.0726]
[1768599234702,15.45044151,145.45,145.37,22.97450588]
[1768599235004,15.45044151,145.45,145.37,6.1936]
[1768599235805,15.59851542,145.44,145.37,6.1936]
[1768599236499,15.59851542,145.44,145.38,6.1933]
[1768599236695,15.59851542,145.47,145.39,16.15273353]
[1768599237203,15.59851542,145.47,145.41,6.1921]
[1768599240107,15.59851542,145.47,145.39,22.34533353]
[1768599240608,21.78831542,145.47,145.39,22.34533353]
[1768599240805,15.59851542,145.46,145.39,22.34533353]
[1768599241805,15.59851542,145.46,145.4,6.1925]
[1768599242910,21.78861542,145.46,145.39,16.15273353]
[1768599243506,15.59851542,145.45,145.39,16.15273353]
[1768599243702,21.78901542,145.45,145.38,22.34603353]
[1768599243901,15.59851542,145.45,145.38,16.15273353]
[1768599244203,15.59851542,145.48,145.38,16.15273353]
[1768599244405,15.59851542,145.48,145.39,16.15273353]
[1768599244709,15.59851542,145.48,145.41,6.1921]
[1768599244908,15.59851542,145.47,145.39,24.56786345]
[1768599245410,15.59851542,145.47,145.39,30.76086345]
[1768599245911,21.78811542,145.47,145.39,30.76086345]
[1768599249616,15.59851542,145.47,145.39,24.56786345]
[1768599250906,21.78861542,145.46,145.39,24.56786345]
[1768599251107,15.59851542,145.46,145.39,16.15273353]
[1768599251407,21.78881542,145.46,145.39,16.15273353]
[1768599251810,15.59851542,145.46,145.39,16.15273353]
[1768599253208,21.78881542,145.46,145.39,16.15273353]
[1768599253516,15.59851542,145.45,145.39,16.15273353]
[1768599254908,15.59851542,145.45,145.39,22.34563353]
[1768599260120,15.59851542,145.45,145.39,16.15273353]
[1768599260924,21.78901542,145.45,145.39,16.15273353]
[1768599261121,15.59851542,145.44,145.38,8.41512992]
[1768599261813,17.1337317,145.42,145.37,8.41512992]
[1768599262019,17.1337317,145.42,145.36,24.56786345]
[1768599265019,23.3245317,145.45,145.37,17.19499937]
[1768599265218,23.3245317,145.45,145.37,25.61012929]
[1768599265929,6.1909,145.44,145.37,25.61012929]
[1768599267525,23.3246317,145.44,145.37,25.61012929]
[1768599268113,23.3246317,145.44,145.38,8.41512992]
[1768599270232,23.3246317,145.44,145.39,8.41512992]
[1768599270729,17.1337317,145.44,145.38,8.41512992]
[1768599271034,17.1337317,145.44,145.37,13.9531605]
[1768599272831,6.1922,145.41,145.37,13.9531605]
[1768599273022,6.1922,145.41,145.36,12.63866201]
[1768599273833,6.1922,145.41,145.36,29.04584521]
[1768599274034,6.1926,145.4,145.36,29.04584521]
[1768599274235,6.1926,145.4,145.36,16.4071832]
[1768599274436,6.1926,145.4,145.36,29.04584521]
[1768599274731,6.1926,145.4,145.36,16.4071832]
[1768599275331,6.1926,145.4,145.36,29.04584521]
[1768599276738,6.1926,145.4,145.36,16.4071832]
[1768599277838,6.193,145.39,145.35,259.94]
[1768599278634,96.314,145.43,145.36,16.4071832]
[1768599278942,113.59832681,145.43,145.36,16.4071832]
[1768599279541,17.28432681,145.42,145.36,16.4071832]
[1768599279941,6.1926,145.4,145.36,16.4071832]
[1768599286843,6.1926,145.4,145.35,259.94]
[1768599287040,6.1931,145.39,145.35,259.94]
[1768599289244,6.1935,145.38,145.35,259.94]
[1768599291645,16.15627501,145.35,145.26,277.16926133]
[1768599291850,16.15627501,145.34,145.27,260.06]
[1768599292043,16.15627501,145.34,145.28,17.10926133]
[1768599292744,112.51177501,145.37,145.28,17.10926133]
[1768599292943,112.48887501,145.4,145.28,17.10926133]
[1768599293144,112.49247501,145.39,145.28,17.10926133]
[1768599294247,16.15627501,145.38,145.28,17.10926133]
[1768599294847,6.1948,145.35,145.29,17.10926133]
[1768599295145,16.15627501,145.38,145.29,17.10926133]
[1768599295146,16.15627501,145.37,145.29,17.10926133]
[1768599295453,112.51977501,145.35,145.27,260.06]
[1768599296853,6.196,145.32,145.27,260.06]
[1768599297257,6.196,145.32,145.27,277.16926133]
[1768599299050,6.196,145.32,145.28,17.10926133]
[1768599307566,16.15627501,145.33,145.27,260.06]
[1768599309360,112.51397501,145.36,145.28,17.10926133]
[1768599309556,16.15627501,145.35,145.28,17.10926133]
[1768599310565,6.196,145.32,145.28,17.10926133]
[1768599311469,6.1965,145.31,145.28,17.10926133]
[1768599313971,6.1968,145.3,145.28,6.133e-05]
[1768599314872,6.1964,145.32,145.28,6.133e-05]
[1768599315673,6.1965,145.31,145.28,6.133e-05]
[1768599316872,6.1965,145.31,145.27,260.06]
[1768599318471,16.15627501,145.3,145.24,6.6804671]
[1768599319576,16.15627501,145.33,145.24,6.6804671]
[1768599320877,6.1962,145.32,145.25,12.87994011]
[1768599324987,16.15627501,145.33,145.26,6.1985]
[1768599326470,16.97589942,145.32,145.25,6.68104011]
[1768599327076,16.97589942,145.32,145.24,6.199]
[1768599327278,16.97589942,145.32,145.24,12.854029]
[1768599327783,16.97589942,145.31,145.24,12.854029]
[1768599328977,16.97589942,145.31,145.25,6.1988]
[1768599329178,16.97589942,145.31,145.24,6.655029]
[1768599329578,16.97589942,145.31,145.25,6.1989]
[1768599331572,16.97589942,145.31,145.24,6.655029]
[1768599332882,16.97589942,145.31,145.24,12.854329]
[1768599333182,16.97589942,145.31,145.24,6.655029]
[1768599333777,16.97589942,145.31,145.25,6.1989]
[1768599338183,16.38294281,145.28,145.23,260.2]
[1768599338580,16.38294281,145.28,145.23,266.3997]
[1768599338780,16.38294281,145.34,145.23,272.98732169]
[1768599339781,16.38294281,145.31,145.24,6.1993]
[1768599345291,16.38294281,145.3,145.24,6.1993]
[1768599349289,16.38294281,145.3,145.24,18.90068116]
[1768599353489,16.38294281,145.3,145.24,6.1993]
[1768599356098,16.90877152,145.32,145.24,12.54394072]
[1768599356296,16.90877152,145.32,145.26,25.24532188]
[1768599356900,16.90877152,145.32,145.25,12.70138116]
[1768599357100,16.90877152,145.32,145.24,25.23033299]
[1768599357394,16.90877152,145.32,145.24,12.52895183]
[1768599358896,16.90877152,145.3,145.24,18.72825183]
[1768599362107,16.90877152,145.3,145.24,6.1993]
[1768599363810,16.90877152,145.3,145.25,6.1989]
[1768599364909,16.90877152,145.3,145.24,12.79486009]
[1768599368005,16.90877152,145.32,145.25,12.37501272]
[1768599368702,16.90877152,145.32,145.25,25.16987281]
[1768599370908,23.10497152,145.32,145.25,25.16987281]
[1768599372913,6.1964,145.31,145.25,25.16987281]
[1768599373913,16.90877152,145.3,145.24,12.79486009]
[1768599374617,6.1973,145.29,145.24,12.79486009]
[1768599377520,6.1977,145.28,145.24,12.79486009]
[1768599377709,23.10647152,145.28,145.23,285.29379529]
[1768599378411,23.10647152,145.28,145.23,272.4989352]
[1768599378813,23.10647152,145.28,145.23,260.2]
[1768599379615,23.10647152,145.28,145.23,272.99486009]
[1768599380118,16.90877152,145.27,145.21,260.28]
[1768599380818,16.90877152,145.27,145.21,249.5886]
[1768599381116,16.90877152,145.27,145.21,239.2131]
[1768599381912,6.1991,145.25,145.21,239.2131]
[1768599385721,6.1991,145.25,145.21,251.37350839]
[1768599391334,6.1984,145.27,145.21,251.37350839]
[1768599391629,16.48652721,145.28,145.21,251.37350839]
[1768599392833,6.1986,145.26,145.21,251.37350839]
[1768599394634,6.1986,145.26,145.22,12.06426941]
[1768599394831,6.198,145.28,145.22,12.06426941]
[1768599396630,6.1981,145.27,145.22,12.06426941]
[1768599399733,96.3944,145.31,145.22,12.06426941]
[1768599399932,6.1987,145.26,145.22,12.06426941]
[1768599400137,6.1987,145.26,145.21,239.2131]
[1768599401437,6.199,145.25,145.21,239.2131]
[1768599403137,16.48652721,145.28,145.21,239.2131]
[1768599404030,6.1985,145.26,145.21,239.2131]
[1768599404232,16.48652721,145.28,145.21,239.2131]
[1768599405837,6.199,145.25,145.21,239.2131]
[1768599406535,6.1997,145.24,145.21,213.25520407]
[1768599406838,6.1997,145.24,145.2,12.00921199]
[1768599407433,6.1997,145.24,145.18,11.94962074]
[1768599408634,16.48652721,145.25,145.18,11.94962074]
[1768599409942,16.48652721,145.25,145.19,11.9255204]
[1768599410837,6.1995,145.24,145.19,11.9255204]
[1768599413440,16.48652721,145.25,145.19,0.7866204]
[1768599413648,16.48652721,145.25,145.17,260.32]
[1768599414950,23.28302407,145.22,145.17,260.32]
[1768599415650,23.28302407,145.22,145.15,0.74470235]
[1768599415849,17.08262407,145.21,145.15,0.74470235]
[1768599416049,17.08262407,145.21,145.14,260.34]
[1768599416844,6.2013,145.2,145.14,260.34]
[1768599417046,6.2013,145.2,145.14,261.07013695]
[1768599420953,6.2013,145.2,145.15,0.64425015]
[1768599422355,6.2015,145.19,145.15,0.64425015]
[1768599423050,6.2015,145.19,145.14,260.34]
[1768599425457,6.201,145.21,145.15,0.54343353]
[1768599426659,23.28362407,145.21,145.15,0.54343353]
[1768599427066,23.28282407,145.23,145.15,0.54343353]
[1768599427364,17.08262407,145.23,145.15,0.54343353]
[1768599428867,6.2003,145.22,145.15,0.54343353]
[1768599429971,17.08262407,145.23,145.16,0.42379072]
[1768599430866,17.08262407,145.23,145.16,6.62659072]
[1768599431066,17.08262407,145.23,145.17,0.40068033]
[1768599432565,6.1997,145.24,145.17,0.40068033]
[1768599432868,17.08262407,145.25,145.18,0.35525285]
[1768599434866,17.08262407,145.25,145.19,6.2014]
[1768599438774,17.08262407,145.25,145.19,6.42650155]
[1768599443083,17.08262407,145.25,145.2,6.2009]
[1768599443377,17.08262407,145.25,145.2,0.12775794]
[1768599443679,16.28037977,145.28,145.2,0.12775794]
[1768599444782,16.28037977,145.28,145.21,6.2005]
[1768599450987,15.38851085,145.27,145.19,6.2012]
[1768599452792,15.38851085,145.26,145.19,6.2012]
[1768599454890,15.38851085,145.26,145.2,6.2011]
[1768599459893,15.38851085,145.26,145.17,12.77750712]
[1768599460489,15.38851085,145.3,145.18,12.77750712]
[1768599461089,15.38851085,145.3,145.19,96.465]
[1768599461294,15.38851085,145.3,145.19,109.24250712]
[1768599461596,15.38851085,145.3,145.21,12.77750712]
[1768599461986,15.38851085,145.33,145.22,12.77750712]
[1768599462597,15.38851085,145.33,145.23,96.4402]
[1768599462798,15.38851085,145.33,145.2,109.23460712]
[1768599463097,15.38851085,145.33,145.21,260.36]
[1768599463795,21.58461085,145.32,145.24,6.1993]
[1768599464494,15.38851085,145.32,145.25,6.1988]
[1768599465286,21.58471085,145.32,145.23,6.1997]
[1768599465490,15.38851085,145.31,145.23,6.1997]
[1768599466292,15.38851085,145.31,145.24,6.1992]
[1768599468698,15.38851085,145.33,145.24,96.4335]
[1768599469898,15.38851085,145.33,145.27,6.1979]
[1768599480010,15.38851085,145.33,145.28,6.1976]
[1768599482210,15.38851085,145.33,145.24,96.4335]
[1768599482211,15.38851085,145.33,145.23,109.21750712]
[1768599482410,15.38851085,145.33,145.26,6.1982]
[1768599482706,15.38851085,145.33,145.23,260.26]
[1768599483907,15.61226221,145.32,145.24,6.199]
[1768599484108,15.61226221,145.32,145.23,260.26]
[1768599485822,15.61226221,145.32,145.23,356.697]
[1768599486917,15.61226221,145.32,145.27,6.1979]
[1768599487720,15.61226221,145.34,145.27,6.1979]
[1768599492216,15.61226221,145.33,145.27,6.1979]
[1768599503732,15.61226221,145.33,145.23,369.47450712]
[1768599503935,15.61226221,145.33,145.23,273.03750712]
[1768599504143,15.61226221,145.33,145.23,260.26]
[1768599504929,15.57498198,145.31,145.24,6.1991]
[1768599506441,15.57498198,145.31,145.25,6.1988]
[1768599509745,15.57498198,145.31,145.23,279.23700712]
[1768599512150,21.77148198,145.31,145.23,279.23700712]
[1768599512560,15.08092515,145.3,145.23,266.4595]
[1768599520864,21.27772515,145.3,145.23,266.4595]
[1768599521260,15.08092515,145.29,145.23,260.26]
[1768599526270,21.27822515,145.29,145.23,260.26]
[1768599526765,6.1973,145.29,145.23,260.26]
[1768599526972,6.1973,145.29,145.23,266.4598]
[1768599533076,21.27762515,145.31,145.23,266.4598]
[1768599533471,15.08092515,145.31,145.23,266.4598]
[1768599534870,6.1968,145.3,145.23,266.4598]
[1768599537574,14.93254868,145.29,145.22,12.77750712]
[1768599537780,14.93254868,145.29,145.21,12.77750712]
[1768599538682,14.93254868,145.29,145.22,12.77750712]
[1768599538878,14.93254868,145.29,145.22,18.97770712]
[1768599540378,6.1968,145.3,145.23,6.1998]
[1768599540783,14.93254868,145.31,145.23,12.77750712]
[1768599540979,14.93254868,145.31,145.22,12.77750712]
[1768599541483,6.1969,145.3,145.23,6.1996]
[1768599542678,6.1962,145.32,145.24,6.1993]
[1768599542878,14.93254868,145.32,145.24,18.97680712]
[1768599543075,14.93254868,145.32,145.24,6.1993]
[1768599543278,14.93254868,145.32,145.24,18.97680712]
[1768599543885,6.1964,145.31,145.24,18.97680712]
[1768599544286,14.93254868,145.3,145.23,12.77750712]
[1768599544587,14.93254868,145.3,145.22,273.05750712]
[1768599545286,6.1967,145.31,145.24,6.1992]